[Event "58th BRA-chW 2019"]
[Site "Rio de Janeiro"]
[Date "2019.02.17"]
[Round "1.2"]
[White "Reis, Virginia Lagrange M"]
[Black "Alboredo, Julia"]
[Result "1/2-1/2"]
[ECO "B51"]
[WhiteElo "1738"]
[BlackElo "2212"]
[Annotator "ChessBase"]
[PlyCount "186"]
[EventDate "2019.02.16"]
[EventType "k.o."]
[EventCountry "BRA"]
[SourceTitle "playchess.com"]
[Source "ChessBase"]
[SourceQuality "1"]
[TimeControl "5400+30"]

1. e4 {[%emt 0:00:00]} c5 {[%emt 0:00:00]} 2. Nf3 {[%emt 0:00:19]} d6 {[%emt 0:00:09]} 3. Bb5+ {[%emt 0:00:46]} Nd7 {[%emt 0:00:11]} 4. a4 {[%emt 0:00:46]} a6 {[%emt 0:01:21]} 5. Be2 {[%emt 0:00:44]} Ngf6 {[%emt 0:00:24]} 6. Nc3 {[%emt 0:00:55]} e6 {[%emt 0:02:22]} 7. O-O {[%emt 0:01:18]} Be7 {[%emt 0:00:51]} 8. a5 {[%emt 0:05:32]} e5 {[%emt 0:08:14]} 9. Bc4 {[%emt 0:05:05]} b5 {[%emt 0:02:54]} 10. Bxf7+ {[%emt 0:14:14]} Kxf7 {[%emt 0:04:30]} 11. Ng5+ {[%emt 0:00:48]} Kg8 {[%emt 0:00:11]} 12. Ne6 {[%emt 0:00:35]} Qe8 {[%emt 0:00:07]} 13. Nc7 {[%emt 0:00:49]} Qg6 {[%emt 0:00:12]} 14. Nxa8 {[%emt 0:00:52]} Nf8 {[%emt 0:21:14]} 15. Nb6 {[%emt 0:10:15]} Bh3 {[%emt 0:02:31]} 16. Qf3 {[%emt 0:02:13]} Bg4 {[%emt 0:00:09]} 17. Qe3 {[%emt 0:01:51]} Nh5 {[%emt 0:03:39]} 18. Nbd5 {[%emt 0:08:01]} Bg5 {[%emt 0:02:38]} 19. d3 {[%emt 0:16:19]} Nf4 {[%emt 0:21:50]} 20. Nxf4 {[%emt 0:10:51]} exf4 {[%emt 0:00:43]} 21. Qd2 {[%emt 0:01:41]} Ne6 {[%emt 0:00:34]} 22. f3 {[%emt 0:02:35]} Bh5 {[%emt 0:00:18]} 23. Nd5 {[%emt 0:00:51]} Kf7 {[%emt 0:00:28]} 24. Qf2 {[%emt 0:01:54]} Qh6 {[%emt 0:14:58]} 25. c3 {[%emt 0:04:05]} Rf8 {[%emt 0:00:58]} 26. b4 {[%emt 0:01:22]} Kg8 {[%emt 0:00:52]} 27. Ba3 {[%emt 0:01:56]} Rc8 {[%emt 0:00:47]} 28. Rac1 {[%emt 0:01:40]} Bf7 {[%emt 0:01:25]} 29. bxc5 {[%emt 0:01:11]} dxc5 {[%emt 0:00:27]} 30. Nb6 {[%emt 0:00:57]} Rd8 {[%emt 0:01:31]} 31. Rfd1 {[%emt 0:00:49]} Bh4 {[%emt 0:00:35]} 32. Qe2 {[%emt 0:00:57]} Kh8 {[%emt 0:06:19]} 33. Bb2 {[%emt 0:00:11]} Qg6 {[%emt 0:00:41]} 34. d4 {[%emt 0:00:27]} c4 {[%emt 0:00:09]} 35. Ba3 {[%emt 0:00:42]} Ng5 {[%emt 0:01:21]} 36. Kh1 {[%emt 0:00:48]} Qh5 {[%emt 0:00:11]} 37. Be7 {[%emt 0:00:27]} Bg3 {[%emt 0:00:08]} 38. h3 {[%emt 0:00:57]} Re8 {[%emt 0:01:36]} 39. Bxg5 {[%emt 0:00:20]} Qxg5 {[%emt 0:02:02]} 40. d5 {[%emt 0:00:24]} Qe5 {[%emt 0:00:00]} 41. Rd4 {[%emt 0:00:33]} Rd8 {[%emt 0:00:00]} 42. Rcd1 {[%emt 0:00:18]} Bh4 {[%emt 0:00:26]} 43. Qd2 {[%emt 0:00:35]} Bf6 {[%emt 0:00:22]} 44. Qf2 {[%emt 0:00:29]} Qd6 {[%emt 0:00:21]} 45. Kh2 {[%emt 0:00:31]} g5 {[%emt 0:01:15]} 46. Rc1 {[%emt 0:00:47]} Kg8 {[%emt 0:00:08]} 47. Rdd1 {[%emt 0:00:18]} h5 {[%emt 0:00:13]} 48. Re1 {[%emt 0:00:34]} Be5 {[%emt 0:00:10]} 49. Kh1 {[%emt 0:00:27]} Kg7 {[%emt 0:00:08]} 50. Qe2 {[%emt 0:00:43]} Rh8 {[%emt 0:00:51]} 51. Kg1 {[%emt 0:00:03]} Rd8 {[%emt 0:00:42]} 52. Kf2 {[%emt 0:00:31]} Qf6 {[%emt 0:00:27]} 53. Qd2 {[%emt 0:00:37]} g4 {[%emt 0:00:31]} 54. hxg4 {[%emt 0:00:18]} hxg4 {[%emt 0:00:00]} 55. Rh1 {[%emt 0:00:23]} Bd6 {[%emt 0:00:30]} 56. Qe2 {[%emt 0:01:25]} g3+ {[%emt 0:00:35]} 57. Kf1 {[%emt 0:00:16]} Be5 {[%emt 0:00:05]} 58. Qd2 {[%emt 0:00:47]} Kg6 {[%emt 0:01:00]} 59. Ke2 {[%emt 0:00:45]} Qd6 {[%emt 0:00:36]} 60. Rh4 {[%emt 0:01:37]} Rh8 {[%emt 0:01:01]} 61. Rxh8 {[%emt 0:00:27]} Bxh8 {[%emt 0:00:01]} 62. Rh1 {[%emt 0:00:31]} Bf6 {[%emt 0:00:07]} 63. Qc2 {[%emt 0:00:24]} Be5 {[%emt 0:00:29]} 64. Kd1 {[%emt 0:01:28]} Qa3 {[%emt 0:00:16]} 65. Nd7 {[%emt 0:00:35]} Qa1+ {[%emt 0:01:30]} 66. Qc1 {[%emt 0:00:22]} Qxc3 {[%emt 0:00:43]} 67. Qxc3 {[%emt 0:00:18]} Bxc3 {[%emt 0:00:02]} 68. Rh4 {[%emt 0:00:24]} Be8 {[%emt 0:00:33]} 69. Nc5 {[%emt 0:00:16]} Bxa5 {[%emt 0:00:16]} 70. Nxa6 {[%emt 0:00:26]} b4 {[%emt 0:00:16]} 71. e5 {[%emt 0:01:22]} Ba4+ {[%emt 0:00:06]} 72. Kc1 {[%emt 0:00:01]} b3 {[%emt 0:00:38]} 73. Rxf4 {[%emt 0:00:13]} Bb5 {[%emt 0:00:03]} 74. Nc5 {[%emt 0:00:20]} Bb4 {[%emt 0:00:19]} 75. Nxb3 {[%emt 0:00:14]} Ba3+ {[%emt 0:00:56]} 76. Kc2 {[%emt 0:00:02]} cxb3+ {[%emt 0:00:05]} 77. Kxb3 {[%emt 0:00:02]} Bc1 {[%emt 0:00:12]} 78. Rf6+ {[%emt 0:00:26]} Kg7 {[%emt 0:01:10]} 79. Rb6 {[%emt 0:01:02]} Bf1 {[%emt 0:00:16]} 80. d6 {[%emt 0:00:33]} Bxg2 {[%emt 0:00:53]} 81. d7 {[%emt 0:01:11]} Bg5 {[%emt 0:00:03]} 82. f4 {[%emt 0:00:45]} Bd5+ {[%emt 0:00:15]} 83. Kc3 {[%emt 0:00:11]} Bd8 {[%emt 0:00:45]} 84. Rb1 {[%emt 0:00:52]} Kg6 {[%emt 0:00:49]} 85. Rg1 {[%emt 0:00:45]} g2 {[%emt 0:00:03]} 86. Kd4 {[%emt 0:00:10]} Ba8 {[%emt 0:00:53]} 87. Kc5 {[%emt 0:00:39]} Be7+ {[%emt 0:00:15]} 88. Kb6 {[%emt 0:00:21]} Kf5 {[%emt 0:00:59]} 89. Kc7 {[%emt 0:00:51]} Kxf4 {[%emt 0:00:08]} 90. e6 {[%emt 0:00:41]} Kf5 {[%emt 0:00:27]} 91. Kc8 {[%emt 0:00:40]} Bd5 {[%emt 0:01:06]} 92. d8=Q {[%emt 0:00:23]} Bxd8 {[%emt 0:00:05]} 93. Kxd8 {[%emt 0:00:11]} Kxe6 {[%emt 0:00:04]} 1/2-1/2

[Event "58th BRA-chW 2019"]
[Site "Rio de Janeiro"]
[Date "2019.02.17"]
[Round "2.1"]
[White "Librelato, Kathie Goulart"]
[Black "Vieira, Julia"]
[Result "1-0"]
[ECO "B04"]
[WhiteElo "2172"]
[BlackElo "1768"]
[Annotator "NA"]
[PlyCount "103"]
[EventDate "2019.02.16"]
[EventType "k.o."]
[EventCountry "BRA"]
[SourceTitle "playchess.com"]
[Source "ChessBase"]
[SourceQuality "1"]
[TimeControl "5400+30"]

1. e4 {[%emt 0:00:00]} Nf6 {[%emt 0:02:35]} 2. e5 {[%emt 0:00:00]} Nd5 {[%emt 0:00:04]} 3. d4 {[%emt 0:00:00]} d6 {[%emt 0:00:02]} 4. Nf3 {[%emt 0:00:00]} dxe5 {[%emt 0:00:13]} 5. Nxe5 {[%emt 0:00:06]} c6 {[%emt 0:00:05]} 6. Be2 {[%emt 0:00:25]} Bf5 {[%emt 0:00:10] B04: Alekhine's Defence: 4 Nf3} 7. O-O {[%emt 0:01:38]} (7. c3 Nd7 8. Nf3 e6 9. O-O Bd6 10. Re1 O-O 11. Nbd2 h6 12. Nc4 Bc7 13. a4 a5 14. Bd3 {1-0 (40) Vachier Lagrave,M (2779)-Dominguez Perez,L (2739) chess.com INT 2018}) 7... Nd7 {[%emt 0:00:11]} 8. Nf3 {[%emt 0:02:07]} e6 {[%emt 0:00:23]} 9. c4 {[%emt 0:08:46]} N5f6 {[%emt 0:02:11]} 10. Bf4 {[%emt 0:05:20]} Be7 {[%emt 0:00:58]} 11. Nc3 {[%emt 0:01:06]} O-O {[%emt 0:00:33]} 12. h3 {[%emt 0:13:24]} h6 {[%emt 0:02:53]} 13. Re1 {[%emt 0:00:10]} Ne4 {[%emt 0:02:11]} 14. Nxe4 {[%emt 0:21:05]} Bxe4 {[%emt 0:00:04]} 15. Qd2 $146 {[%emt 0:00:40]} Nf6 {[%emt 0:02:28]} 16. Rad1 {[%emt 0:02:33]} Re8 {[%emt 0:20:48]} 17. Bh2 {[%emt 0:02:36]} c5 {[%emt 0:09:52]} 18. Qc3 {[%emt 0:05:01]} Qb6 {[%emt 0:06:14]} 19. a3 {[%emt 0:08:31]} Rad8 {[%emt 0:07:41]} 20. Be5 {[%emt 0:00:15]} cxd4 {[%emt 0:12:37]} 21. Nxd4 {[%emt 0:03:30]} a5 {[%emt 0:10:17]} 22. Nb5 {[%emt 0:05:34]} Rxd1 {[%emt 0:08:56]} 23. Rxd1 {[%emt 0:00:07]} Bc6 {[%emt 0:00:17]} 24. Qg3 {[%emt 0:14:59]} Bxb5 {[%emt 0:02:22]} 25. cxb5 {[%emt 0:00:01]} Rd8 {[%emt 0:01:07]} 26. Rc1 {[%emt 0:00:55]} Bd6 {[%emt 0:01:28]} 27. Bxd6 {[%emt 0:01:11]} Qxd6 {[%emt 0:02:13]} 28. Qxd6 {[%emt 0:01:18]} Rxd6 {[%emt 0:00:01]} 29. Rc8+ {[%emt 0:00:01]} Kh7 {[%emt 0:05:36]} 30. Rc7 {[%emt 0:00:10]} Rd7 {[%emt 0:00:00]} 31. b6 {[%emt 0:00:29]} Kg6 {[%emt 0:00:00]} 32. Bf3 {[%emt 0:00:36]} Rd6 {[%emt 0:00:08]} 33. Rxb7 {[%emt 0:00:30]} Nd7 {[%emt 0:00:56]} 34. Ra7 {[%emt 0:01:16]} Nxb6 {[%emt 0:00:09]} 35. Rxa5 {[%emt 0:00:02]} Nc4 {[%emt 0:00:24]} 36. Rb5 {[%emt 0:00:33]} Rd2 {[%emt 0:00:14]} 37. a4 {[%emt 0:00:29]} Nxb2 {[%emt 0:00:18]} 38. a5 {[%emt 0:01:08]} Nc4 {[%emt 0:00:11]} 39. Rc5 {[%emt 0:01:45]} Nd6 {[%emt 0:00:42]} 40. a6 {[%emt 0:00:57]} Ra2 {[%emt 0:00:15]} 41. Rc6 {[%emt 0:00:19]} Nb5 {[%emt 0:00:11] [#]} (41... Ne8 $11) 42. Rb6 {[%emt 0:00:50]} ({White should play} 42. Be4+ $1 $16 Kf6 43. Bd3 Ra1+ 44. Kh2) 42... Nc7 {[%emt 0:01:20]} 43. Bb7 {[%emt 0:00:16]} Kf6 {[%emt 0:00:21]} 44. Kf1 $11 {[%emt 0:00:38]} Ke7 {[%emt 0:00:26]} 45. Ke1 {[%emt 0:00:30]} Kd7 {[%emt 0:00:45]} 46. f4 {[%emt 0:00:39]} Nd5 {[%emt 0:00:40]} 47. Bxd5 {[%emt 0:00:29]} exd5 {[%emt 0:00:02]} 48. Rb7+ {[%emt 0:00:05]} Kc6 {[%emt 0:00:33]} 49. Rxf7 {[%emt 0:00:16]} Rxg2 {[%emt 0:00:32]} 50. a7 {[%emt 0:00:21]} Ra2 {[%emt 0:00:08]} 51. Rxg7 {[%emt 0:00:07]} h5 {[%emt 0:00:37]} 52. f5 {[%emt 0:01:00]} 1-0

[Event "58th BRA-chW 2019"]
[Site "Rio de Janeiro"]
[Date "2019.02.17"]
[Round "2.1"]
[White "Gazola, Vanessa Ramos"]
[Black "Melo, Gabrieli De"]
[Result "1/2-1/2"]
[ECO "E07"]
[WhiteElo "1951"]
[BlackElo "1792"]
[Annotator "NA"]
[PlyCount "169"]
[EventDate "2019.02.16"]
[EventType "k.o."]
[EventCountry "BRA"]
[SourceTitle "playchess.com"]
[Source "ChessBase"]
[SourceQuality "1"]
[TimeControl "5400+30"]

1. d4 {[%emt 0:00:00]} Nf6 {[%emt 0:00:00]} 2. c4 {[%emt 0:00:00]} e6 {[%emt 0:00:00]} 3. g3 {[%emt 0:00:00]} d5 {[%emt 0:00:30]} 4. Nf3 {[%emt 0:00:02]} Be7 {[%emt 0:01:08]} 5. Bg2 {[%emt 0:00:08]} O-O {[%emt 0:00:10]} 6. O-O {[%emt 0:00:16]} Nbd7 {[%emt 0:01:21]} 7. b3 {[%emt 0:04:06]} b6 {[%emt 0:03:41]} 8. Qc2 {[%emt 0:05:17] E07: Closed Catalan: Main Line (5 Nf3 0-0 6 0-0 Nbd7)} Bb7 {[%emt 0:01:21]} 9. cxd5 {[%emt 0:00:12]} exd5 {[%emt 0:01:16]} 10. Bf4 $146 {[%emt 0:00:58]} ({Predecessor:} 10. Ba3 Bxa3 11. Nxa3 c5 12. Rfd1 Qe7 13. Qb2 Rfe8 14. e3 Ne4 15. Nb5 Ndf6 16. Ne5 {½-½ (66) Lajthajm,B (2525)-Abramovic,B (2437) Vrnjacka Banja 2014}) 10... Rc8 {[%emt 0:01:22]} 11. Nc3 {[%emt 0:08:35]} a6 {[%emt 0:04:05]} 12. Rfd1 {[%emt 0:05:27]} Nh5 {[%emt 0:08:18]} 13. Be3 {[%emt 0:02:39]} Nhf6 {[%emt 0:03:27]} 14. Bh3 {[%emt 0:01:37]} Bd6 {[%emt 0:10:27]} 15. Bg5 {[%emt 0:01:06]} Rb8 {[%emt 0:03:16]} 16. Nh4 {[%emt 0:03:36]} (16. Bxd7 $14 Qxd7 17. Bxf6 gxf6 18. Nh4) 16... h6 {[%emt 0:05:17]} 17. Bc1 {[%emt 0:05:27]} Ne4 {[%emt 0:06:39]} 18. Nf5 {[%emt 0:04:28]} Ndf6 {[%emt 0:02:37]} 19. Nxd6 {[%emt 0:01:35]} Nxd6 {[%emt 0:01:32]} 20. Ba3 {[%emt 0:02:39]} Bc8 {[%emt 0:02:25]} 21. Bg2 {[%emt 0:02:40]} Be6 {[%emt 0:00:40]} 22. Na4 {[%emt 0:05:49]} (22. f3 $16) 22... Qd7 {[%emt 0:03:07]} 23. Rac1 {[%emt 0:02:06]} Rfc8 {[%emt 0:01:19]} 24. e3 {[%emt 0:03:54]} Nb5 {[%emt 0:07:00]} 25. Bb4 {[%emt 0:01:37]} a5 {[%emt 0:01:10]} 26. Be1 {[%emt 0:03:56]} Bf5 {[%emt 0:02:39]} 27. Qe2 {[%emt 0:01:23]} Nd6 {[%emt 0:01:41]} 28. Nb2 {[%emt 0:01:05]} Qb5 {[%emt 0:02:27]} 29. Qxb5 {[%emt 0:02:42]} Nxb5 {[%emt 0:00:08]} 30. Bf1 {[%emt 0:00:06]} c6 {[%emt 0:01:12]} 31. Nd3 {[%emt 0:03:14]} Bxd3 {[%emt 0:03:54]} 32. Bxd3 {[%emt 0:00:08]} Nd6 {[%emt 0:00:28]} 33. Rc2 {[%emt 0:00:49]} Nb7 {[%emt 0:05:22]} 34. Rdc1 {[%emt 0:02:43]} Nd8 {[%emt 0:00:25]} 35. b4 {[%emt 0:00:56]} b5 {[%emt 0:01:47]} 36. bxa5 {[%emt 0:00:33]} Kf8 {[%emt 0:00:50]} 37. Bb4+ {[%emt 0:00:42]} Ke8 {[%emt 0:00:07]} 38. f3 {[%emt 0:06:18]} Kd7 {[%emt 0:01:17]} 39. g4 {[%emt 0:04:26]} g6 {[%emt 0:00:24]} 40. h4 {[%emt 0:00:13]} Ne6 {[%emt 0:02:10]} 41. Rg2 {[%emt 0:00:52]} h5 {[%emt 0:01:21]} 42. gxh5 {[%emt 0:02:07]} Nxh5 {[%emt 0:00:07]} 43. f4 {[%emt 0:00:04]} Rg8 {[%emt 0:00:44]} 44. f5 {[%emt 0:02:00]} gxf5 {[%emt 0:00:29]} 45. Bxf5 {[%emt 0:00:11]} Ng3 {[%emt 0:01:19]} 46. Bxe6+ {[%emt 0:01:48]} fxe6 {[%emt 0:00:30]} 47. Kh2 {[%emt 0:03:30]} Nf5 {[%emt 0:00:39]} 48. Rcg1 {[%emt 0:01:53]} Rh8 {[%emt 0:00:56]} 49. Rg4 {[%emt 0:01:30]} Rh7 {[%emt 0:00:25]} 50. Be1 {[%emt 0:01:02]} b4 {[%emt 0:01:37] [#]} 51. e4 $15 {[%emt 0:01:57]} ({White should play} 51. Rg8 $1 $16 {[%cal Rg8b8]} Rxg8 52. Rxg8) 51... dxe4 {[%emt 0:00:15]} 52. Rxe4 {[%emt 0:00:08]} Rb5 {[%emt 0:01:46]} 53. Re5 {[%emt 0:02:17]} Nxd4 {[%emt 0:01:16]} 54. Rxb5 {[%emt 0:00:23]} Nxb5 {[%emt 0:00:11]} 55. Rg5 {[%emt 0:02:16]} Nd4 {[%emt 0:03:02]} 56. Kg2 {[%emt 0:01:28]} Nf5 {[%emt 0:00:59]} 57. Bxb4 {[%emt 0:00:24]} Rxh4 {[%emt 0:00:25]} 58. a3 {[%emt 0:00:07]} Rh7 {[%emt 0:01:27]} 59. Kf2 {[%emt 0:00:39]} Rh8 {[%emt 0:01:47]} 60. Ke2 {[%emt 0:00:23]} Kc7 {[%emt 0:00:18]} 61. Kd3 {[%emt 0:00:25]} Kb7 {[%emt 0:00:32]} 62. Rg6 {[%emt 0:00:39]} Re8 {[%emt 0:00:56]} 63. Kc4 {[%emt 0:00:21]} Ne3+ {[%emt 0:00:20]} 64. Kc5 {[%emt 0:00:23]} Nf5 {[%emt 0:00:12]} 65. Rf6 {[%emt 0:00:29]} Re7 {[%emt 0:02:36]} 66. Rf8 {[%emt 0:01:14]} Rd7 {[%emt 0:00:15]} 67. a6+ {[%emt 0:00:27]} Ka7 {[%emt 0:01:21]} 68. Kxc6 {[%emt 0:00:11]} Rd5 {[%emt 0:00:41]} 69. Bc5+ {[%emt 0:00:43]} Rxc5+ {[%emt 0:00:15]} 70. Kxc5 {[%emt 0:00:05]} Kxa6 {[%emt 0:00:15]} 71. Kc6 {[%emt 0:00:23]} Nd4+ {[%emt 0:00:35]} 72. Kd6 {[%emt 0:00:58]} Kb5 {[%emt 0:00:23]} 73. Ke5 {[%emt 0:00:16]} Nc2 {[%emt 0:00:37]} 74. Ra8 {[%emt 0:00:26]} Ne3 {[%emt 0:00:27]} 75. Kxe6 {[%emt 0:00:17]} Nc4 {[%emt 0:00:07]} 76. a4+ {[%emt 0:00:06]} Kb4 {[%emt 0:00:42]} 77. Ra6 {[%emt 0:00:36]} Na5 {[%emt 0:00:16]} 78. Kd5 {[%emt 0:00:26]} Nc4 {[%emt 0:01:05]} 79. Kd4 {[%emt 0:01:34]} Na5 {[%emt 0:00:21]} 80. Ra8 {[%emt 0:00:46]} Nc6+ {[%emt 0:00:21]} 81. Kd5 {[%emt 0:00:39]} Na5 {[%emt 0:00:08]} 82. Ra7 {[%emt 0:00:23]} Nb3 {[%emt 0:01:01]} 83. Rb7+ {[%emt 0:00:39]} Kxa4 {[%emt 0:00:09]} 84. Kc4 {[%emt 0:00:07]} Na5+ {[%emt 0:00:02]} 85. Kd4 {[%emt 0:01:30]} 1/2-1/2

[Event "58th BRA-chW 2019"]
[Site "Rio de Janeiro"]
[Date "2019.02.21"]
[Round "3.2"]
[White "Terao, Juliana Sayumi"]
[Black "Ichimura G. Barbosa, Larissa Y."]
[Result "1-0"]
[ECO "B22"]
[WhiteElo "2241"]
[BlackElo "1983"]
[Annotator "NA"]
[PlyCount "69"]
[EventDate "2019.02.16"]
[EventType "k.o."]
[EventCountry "BRA"]
[SourceTitle "playchess.com"]
[Source "ChessBase"]
[SourceQuality "1"]
[TimeControl "5400+30"]

1. e4 {[%emt 0:00:00]} c5 {[%emt 0:00:00]} 2. c3 {[%emt 0:00:00]} Nf6 {[%emt 0:00:05]} 3. e5 {[%emt 0:00:10]} Nd5 {[%emt 0:00:20]} 4. d4 {[%emt 0:00:12]} cxd4 {[%emt 0:00:26]} 5. Qxd4 {[%emt 0:00:06]} e6 {[%emt 0:01:10]} 6. Nf3 {[%emt 0:00:05]} Nc6 {[%emt 0:02:17]} 7. Qe4 {[%emt 0:00:05]} f5 {[%emt 0:01:04]} 8. Qe2 {[%emt 0:00:06]} Qc7 {[%emt 0:00:54]} 9. g3 {[%emt 0:00:14]} b6 {[%emt 0:00:45]} 10. Bg2 {[%emt 0:00:58]} Ncb4 {[%emt 0:01:45]} 11. Qd1 {[%emt 0:02:07]} Ba6 {[%emt 0:01:28]} 12. Bf1 {[%emt 0:01:00]} Bxf1 {[%emt 0:01:08]} 13. Kxf1 {[%emt 0:00:06]} Nc6 {[%emt 0:01:02]} 14. Qe2 {[%emt 0:00:48]} Qb7 {[%emt 0:02:18]} 15. Kg2 {[%emt 0:02:24]} Be7 {[%emt 0:03:16]} 16. Rd1 {[%emt 0:03:43]} b5 {[%emt 0:05:44]} 17. Kg1 {[%emt 0:01:55]} O-O {[%emt 0:04:07]} 18. Nbd2 {[%emt 0:13:53]} Rac8 {[%emt 0:07:38]} 19. Nf1 {[%emt 0:02:28]} f4 {[%emt 0:03:28]} 20. g4 {[%emt 0:02:59]} Qc7 {[%emt 0:10:06]} 21. Rd3 {[%emt 0:03:21]} d6 {[%emt 0:07:32]} 22. exd6 {[%emt 0:00:36]} Qxd6 {[%emt 0:00:05]} 23. b3 {[%emt 0:05:53]} e5 {[%emt 0:00:24]} 24. c4 {[%emt 0:14:52]} bxc4 {[%emt 0:00:07]} 25. bxc4 {[%emt 0:00:04]} Qe6 {[%emt 0:00:37]} 26. cxd5 {[%emt 0:03:16]} Qxg4+ {[%emt 0:00:58]} 27. Kh1 {[%emt 0:00:37]} Nb4 {[%emt 0:02:32]} 28. Rb3 {[%emt 0:03:49]} Nxd5 {[%emt 0:04:53]} 29. Bb2 {[%emt 0:03:43]} Bb4 {[%emt 0:11:33]} 30. Qe4 {[%emt 0:04:42]} Nc3 {[%emt 0:01:28]} 31. Nxe5 {[%emt 0:01:13]} Qe6 {[%emt 0:01:32]} 32. Qxb4 {[%emt 0:01:32]} Qxe5 {[%emt 0:00:06]} 33. Rxc3 {[%emt 0:01:04]} Rb8 {[%emt 0:01:29]} 34. Qc4+ {[%emt 0:00:36]} Kh8 {[%emt 0:00:05]} 35. Rb3 {[%emt 0:00:32]} 1-0

[Event "58th BRA-chW 2019"]
[Site "Rio de Janeiro"]
[Date "2019.02.21"]
[Round "3.2"]
[White "Librelato, Kathie Goulart"]
[Black "Alboredo, Julia"]
[Result "1-0"]
[ECO "D77"]
[WhiteElo "2172"]
[BlackElo "2212"]
[Annotator "NA"]
[PlyCount "185"]
[EventDate "2019.02.16"]
[EventType "k.o."]
[EventCountry "BRA"]
[SourceTitle "playchess.com"]
[Source "ChessBase"]
[SourceQuality "1"]
[TimeControl "5400+30"]

1. Nf3 {[%emt 0:00:00]} Nf6 {[%emt 0:00:41]} 2. g3 {[%emt 0:00:00]} g6 {[%emt 0:00:15]} 3. Bg2 {[%emt 0:00:00]} Bg7 {[%emt 0:00:15]} 4. O-O {[%emt 0:00:00]} d5 {[%emt 0:00:28]} 5. d4 {[%emt 0:00:22]} O-O {[%emt 0:01:08]} 6. c4 {[%emt 0:00:09]} dxc4 {[%emt 0:06:35]} 7. Na3 {[%emt 0:00:52]} c3 {[%emt 0:01:06]} 8. bxc3 {[%emt 0:00:38]} c5 {[%emt 0:00:20]} 9. Ne5 {[%emt 0:22:28]} Qa5 {[%emt 0:13:03]} 10. Qb3 {[%emt 0:20:49]} Nbd7 {[%emt 0:19:46]} 11. Nec4 {[%emt 0:02:12]} Qd8 {[%emt 0:02:07]} 12. Rd1 {[%emt 0:01:21]} cxd4 {[%emt 0:11:18]} 13. cxd4 {[%emt 0:01:44]} Nb6 {[%emt 0:03:20]} 14. e4 {[%emt 0:12:20]} Bg4 {[%emt 0:04:44]} 15. f3 {[%emt 0:00:06]} Bd7 {[%emt 0:00:08]} 16. Nb2 {[%emt 0:03:41]} Qe8 {[%emt 0:06:04]} 17. Be3 {[%emt 0:04:20]} Ba4 {[%emt 0:01:33]} 18. Nxa4 {[%emt 0:00:09]} Qxa4 {[%emt 0:00:08]} 19. Qxa4 {[%emt 0:12:37]} Nxa4 {[%emt 0:00:02]} 20. Rac1 {[%emt 0:00:01]} Rac8 {[%emt 0:03:24]} 21. d5 {[%emt 0:00:35]} Nc3 {[%emt 0:03:12]} 22. Rd2 {[%emt 0:00:12]} Nd7 {[%emt 0:12:35]} 23. Rdc2 {[%emt 0:10:43]} Nb6 {[%emt 0:00:17]} 24. f4 {[%emt 0:01:52]} Nca4 {[%emt 0:01:37]} 25. Bh3 {[%emt 0:01:22]} Rxc2 {[%emt 0:00:55]} 26. Rxc2 {[%emt 0:00:01]} f5 {[%emt 0:00:16]} 27. Rc7 {[%emt 0:00:59]} Rd8 {[%emt 0:01:08]} 28. Rxb7 {[%emt 0:01:08]} fxe4 {[%emt 0:00:18]} 29. Rxa7 {[%emt 0:00:07]} Kf8 {[%emt 0:02:47]} 30. Be6 {[%emt 0:00:25]} Bb2 {[%emt 0:00:19]} 31. Nc2 {[%emt 0:00:43]} Rd6 {[%emt 0:02:26]} 32. Nb4 {[%emt 0:01:24]} Nc4 {[%emt 0:01:47]} 33. Ra8+ {[%emt 0:01:05]} Kg7 {[%emt 0:00:01]} 34. Ba7 {[%emt 0:01:22]} e3 {[%emt 0:00:48]} 35. Rg8+ {[%emt 0:01:03]} Kh6 {[%emt 0:01:35]} 36. g4 {[%emt 0:00:32]} Bc3 {[%emt 0:00:39]} 37. Nc2 {[%emt 0:00:29]} e2 {[%emt 0:00:38]} 38. Bf2 {[%emt 0:00:02]} Bf6 {[%emt 0:00:36]} 39. g5+ {[%emt 0:00:55]} Bxg5 {[%emt 0:00:01]} 40. fxg5+ {[%emt 0:00:01]} Kxg5 {[%emt 0:00:10]} 41. Nd4 {[%emt 0:00:17]} Nd2 {[%emt 0:01:09]} 42. Nxe2 {[%emt 0:00:33]} Nf3+ {[%emt 0:00:17]} 43. Kg2 {[%emt 0:00:02]} Nh4+ {[%emt 0:00:42]} 44. Bxh4+ {[%emt 0:01:03]} Kxh4 {[%emt 0:00:01]} 45. Re8 {[%emt 0:00:25]} Nb6 {[%emt 0:00:34]} 46. Nc3 {[%emt 0:00:29]} Nc4 {[%emt 0:00:30]} 47. Rxe7 {[%emt 0:00:16]} h5 {[%emt 0:00:06]} 48. Rc7 {[%emt 0:01:16]} Ne5 {[%emt 0:00:20]} 49. Ra7 {[%emt 0:00:34]} Rb6 {[%emt 0:00:09]} 50. Ra4+ {[%emt 0:00:24]} Kg5 {[%emt 0:00:33]} 51. Ne4+ {[%emt 0:00:11]} Kf4 {[%emt 0:00:43]} 52. d6 {[%emt 0:00:43]} Rb2+ {[%emt 0:00:10]} 53. Nf2+ {[%emt 0:00:06]} Kg5 {[%emt 0:00:22]} 54. d7 {[%emt 0:00:34]} Rd2 {[%emt 0:01:04]} 55. Ra5 {[%emt 0:01:13]} Kf6 {[%emt 0:00:15]} 56. Rd5 {[%emt 0:00:30]} Rxd5 {[%emt 0:00:45]} 57. Bxd5 {[%emt 0:00:01]} Nxd7 {[%emt 0:00:06]} 58. Nd3 {[%emt 0:00:14]} Nb6 {[%emt 0:00:39]} 59. Bb3 {[%emt 0:00:11]} Kf5 {[%emt 0:00:15]} 60. Kf3 {[%emt 0:00:34]} g5 {[%emt 0:00:19]} 61. Nc5 {[%emt 0:00:34]} g4+ {[%emt 0:00:25]} 62. Kg3 {[%emt 0:00:13]} Kg5 {[%emt 0:00:32]} 63. Ne6+ {[%emt 0:00:11]} Kf5 {[%emt 0:00:15]} 64. Kh4 {[%emt 0:00:18]} Ke4 {[%emt 0:00:45]} 65. Kg3 {[%emt 0:01:35]} Kf5 {[%emt 0:00:09]} 66. Nc5 {[%emt 0:00:31]} Kg5 {[%emt 0:00:12]} 67. Ne4+ {[%emt 0:00:30]} Kf5 {[%emt 0:00:08]} 68. Nd6+ {[%emt 0:00:40]} Kg5 {[%emt 0:00:08]} 69. Nf7+ {[%emt 0:00:22]} Kg6 {[%emt 0:00:36]} 70. Nd8 {[%emt 0:00:26]} Kg5 {[%emt 0:00:07]} 71. a4 {[%emt 0:00:33]} h4+ {[%emt 0:00:05]} 72. Kg2 {[%emt 0:00:04]} Nd7 {[%emt 0:01:12]} 73. a5 {[%emt 0:00:16]} Kf4 {[%emt 0:00:37]} 74. Ne6+ {[%emt 0:00:19]} Ke5 {[%emt 0:00:09]} 75. a6 {[%emt 0:00:59]} Kd6 {[%emt 0:00:27]} 76. Nd4 {[%emt 0:00:45]} Kc7 {[%emt 0:01:48]} 77. Nf5 {[%emt 0:00:53]} Ne5 {[%emt 0:00:22]} 78. Bd5 {[%emt 0:00:45]} Kb6 {[%emt 0:00:47]} 79. Bb7 {[%emt 0:00:01]} Ng6 {[%emt 0:00:08]} 80. Kg1 {[%emt 0:01:01]} g3 {[%emt 0:00:37]} 81. Nxg3 {[%emt 0:00:33]} hxg3 {[%emt 0:01:10]} 82. hxg3 {[%emt 0:00:01]} Ne5 {[%emt 0:00:17]} 83. Kf2 {[%emt 0:00:22]} Nd3+ {[%emt 0:00:05]} 84. Ke3 {[%emt 0:00:05]} Nc5 {[%emt 0:00:05]} 85. g4 {[%emt 0:00:07]} Kc7 {[%emt 0:00:26]} 86. Kd4 {[%emt 0:00:19]} Nd7 {[%emt 0:00:31]} 87. g5 {[%emt 0:00:19]} Kd6 {[%emt 0:00:17]} 88. a7 {[%emt 0:01:17]} Nb6 {[%emt 0:00:05]} 89. a8=Q {[%emt 0:00:05]} Nxa8 {[%emt 0:00:02]} 90. Bxa8 {[%emt 0:00:06]} Ke6 {[%emt 0:00:04]} 91. Ke4 {[%emt 0:00:10]} Kf7 {[%emt 0:00:11]} 92. Kf5 {[%emt 0:00:06]} Kg7 {[%emt 0:00:04]} 93. Bd5 {[%emt 0:00:07]} 1-0